{"text_format":"3","workbook":"xlsx","n_sheets":1,"sheets":["Звіт про витрати"],"not_rendered":{"images":2,"defined_names":12},"read":"whole","date_system":"1900"}

{"sheet":"Звіт про витрати","index":0,"n_rows":24,"n_cols":13,"rows_kept":24,"merged":[[3,2,3,3],[3,5,3,6],[3,9,3,10],[4,2,4,3],[4,5,4,6],[4,9,4,10],[5,2,5,3],[5,5,5,6],[5,9,5,10],[6,2,6,3],[6,5,6,6],[6,9,6,10],[7,9,7,10]]}
[null,"ЗВІТ ПРО ВИТРАТИ"]
[null,"CONTOSO, LTD"]
[null,"вул. Відома, 123 м. Одеса 12345 Україна"]
[null,"ТЕЛЕФОН",4255550121,null,"ІМ’Я","Світлана Лисенко",null,null,"ПРИЗНАЧЕННЯ","Щорічний семінар зі збуту",null,"ТАРИФ ЗА КІЛОМЕТРАЖ",{"v":4,"d":"4.00₴ за км"}]
[null,"ФАКС",4255550122,null,"ВІДДІЛ","Збут",null,null,"ВІДПРАВЛЕННЯ",{"$f":"IFERROR(MIN(Витрати[ДАТА]),\"\")","v":"2018-06-04"},null,"ТАРИФ НА ХАРЧУВАННЯ",{"v":240,"d":"240.00₴ за день"}]
[null,"ЕЛЕКТРОННА ПОШТА","info@contoso.com",null,"ПОСАДА","Директор-розпорядник",null,null,"ПРИБУТТЯ",{"$f":"IFERROR(MAX(Витрати[ДАТА]),\"\")","v":"2018-07-04"},null,"ТАРИФ НА ГОТЕЛЬ",{"v":1600,"d":"1,600.00₴ за ніч"}]
[null,"ВЕБ-АДРЕСА","www.contoso.com",null,"КЕРІВНИК","Дмитро Ткачук",null,null,"КИМ ОРГАНІЗОВАНО","Світлана Лисенко",null,"ТАРИФ НА ТЕЛЕФОН",{"v":80,"d":"80.00₴ за день"}]
[{"$nulls":8},"КИМ ЗАТВЕРДЖЕНО","Дмитро Ткачук",null,"РІЗНЕ ТАРИФ",{"v":400,"d":"400.00₴ за день"}]
[]
[null,"ДАТА","РАХУНОК","ОПИС","ГОТЕЛЬ","ТРАНСПОРТ","ХАРЧУВАННЯ","ТЕЛЕФОН","РІЗНЕ","ПОЧАТКОВІ ПОКАЗИ \nОДОМЕТРА","КІНЦЕВІ ПОКАЗИ \nОДОМЕТРА","КІЛОМЕТРАЖ \nУСЬОГО","УСЬОГО "]
[null,{"$f":"TODAY()","v":"2018-06-04"},"Збут","Відстань",{"$nulls":4},{"v":400,"d":"400.00 ₴"},{"v":11378.5,"d":"11,378.5 км"},{"v":11456.2,"d":"11,456.2 км"},{"$f":"IF(COUNTA(Витрати[[#This Row],[ПОЧАТКОВІ ПОКАЗИ \nОДОМЕТРА]:[КІНЦЕВІ ПОКАЗИ \nОДОМЕТРА]])=2,(Витрати[[#This Row],[КІНЦЕВІ ПОКАЗИ \nОДОМЕТРА]]-Витрати[[#This Row],[ПОЧАТКОВІ ПОКАЗИ \nОДОМЕТРА]])*ТарифЗаКілометраж,\"\")","v":{"v":310.8000000000029,"d":"310.80 ₴"}},{"$f":"IF(COUNTA(Витрати[[#This Row],[ДАТА]:[КІНЦЕВІ ПОКАЗИ \nОДОМЕТРА]])=0,\"\",SUM(Витрати[[#This Row],[ГОТЕЛЬ]:[ТРАНСПОРТ]],Витрати[[#This Row],[ХАРЧУВАННЯ]:[РІЗНЕ]],((Витрати[[#This Row],[КІНЦЕВІ ПОКАЗИ \nОДОМЕТРА]]-Витрати[[#This Row],[ПОЧАТКОВІ ПОКАЗИ \nОДОМЕТРА]])*(ТарифЗаКілометраж))))","v":{"v":710.8000000000029,"d":"710.80 ₴"}}]
[null,{"$f":"TODAY()+30","v":"2018-07-04"},"Збут","Конференція",{"v":3560,"d":"3,560.00 ₴"},{"v":1800,"d":"1,800.00 ₴"},{"v":160,"d":"160.00 ₴"},null,{"v":40,"d":"40.00 ₴"},{"v":11500,"d":"11,500.0 км"},{"v":11560,"d":"11,560.0 км"},{"$f":"IF(COUNTA(Витрати[[#This Row],[ПОЧАТКОВІ ПОКАЗИ \nОДОМЕТРА]:[КІНЦЕВІ ПОКАЗИ \nОДОМЕТРА]])=2,(Витрати[[#This Row],[КІНЦЕВІ ПОКАЗИ \nОДОМЕТРА]]-Витрати[[#This Row],[ПОЧАТКОВІ ПОКАЗИ \nОДОМЕТРА]])*ТарифЗаКілометраж,\"\")","v":{"v":240,"d":"240.00 ₴"}},{"$f":"IF(COUNTA(Витрати[[#This Row],[ДАТА]:[КІНЦЕВІ ПОКАЗИ \nОДОМЕТРА]])=0,\"\",SUM(Витрати[[#This Row],[ГОТЕЛЬ]:[ТРАНСПОРТ]],Витрати[[#This Row],[ХАРЧУВАННЯ]:[РІЗНЕ]],((Витрати[[#This Row],[КІНЦЕВІ ПОКАЗИ \nОДОМЕТРА]]-Витрати[[#This Row],[ПОЧАТКОВІ ПОКАЗИ \nОДОМЕТРА]])*(ТарифЗаКілометраж))))","v":{"v":5800,"d":"5,800.00 ₴"}}]
[{"$nulls":11},{"$f":"IF(COUNTA(Витрати[[#This Row],[ПОЧАТКОВІ ПОКАЗИ \nОДОМЕТРА]:[КІНЦЕВІ ПОКАЗИ \nОДОМЕТРА]])=2,(Витрати[[#This Row],[КІНЦЕВІ ПОКАЗИ \nОДОМЕТРА]]-Витрати[[#This Row],[ПОЧАТКОВІ ПОКАЗИ \nОДОМЕТРА]])*ТарифЗаКілометраж,\"\")","v":""},{"$f":"IF(COUNTA(Витрати[[#This Row],[ДАТА]:[КІНЦЕВІ ПОКАЗИ \nОДОМЕТРА]])=0,\"\",SUM(Витрати[[#This Row],[ГОТЕЛЬ]:[ТРАНСПОРТ]],Витрати[[#This Row],[ХАРЧУВАННЯ]:[РІЗНЕ]],((Витрати[[#This Row],[КІНЦЕВІ ПОКАЗИ \nОДОМЕТРА]]-Витрати[[#This Row],[ПОЧАТКОВІ ПОКАЗИ \nОДОМЕТРА]])*(ТарифЗаКілометраж))))","v":""}]
[{"$nulls":11},{"$f":"IF(COUNTA(Витрати[[#This Row],[ПОЧАТКОВІ ПОКАЗИ \nОДОМЕТРА]:[КІНЦЕВІ ПОКАЗИ \nОДОМЕТРА]])=2,(Витрати[[#This Row],[КІНЦЕВІ ПОКАЗИ \nОДОМЕТРА]]-Витрати[[#This Row],[ПОЧАТКОВІ ПОКАЗИ \nОДОМЕТРА]])*ТарифЗаКілометраж,\"\")","v":""},{"$f":"IF(COUNTA(Витрати[[#This Row],[ДАТА]:[КІНЦЕВІ ПОКАЗИ \nОДОМЕТРА]])=0,\"\",SUM(Витрати[[#This Row],[ГОТЕЛЬ]:[ТРАНСПОРТ]],Витрати[[#This Row],[ХАРЧУВАННЯ]:[РІЗНЕ]],((Витрати[[#This Row],[КІНЦЕВІ ПОКАЗИ \nОДОМЕТРА]]-Витрати[[#This Row],[ПОЧАТКОВІ ПОКАЗИ \nОДОМЕТРА]])*(ТарифЗаКілометраж))))","v":""}]
[{"$nulls":11},{"$f":"IF(COUNTA(Витрати[[#This Row],[ПОЧАТКОВІ ПОКАЗИ \nОДОМЕТРА]:[КІНЦЕВІ ПОКАЗИ \nОДОМЕТРА]])=2,(Витрати[[#This Row],[КІНЦЕВІ ПОКАЗИ \nОДОМЕТРА]]-Витрати[[#This Row],[ПОЧАТКОВІ ПОКАЗИ \nОДОМЕТРА]])*ТарифЗаКілометраж,\"\")","v":""},{"$f":"IF(COUNTA(Витрати[[#This Row],[ДАТА]:[КІНЦЕВІ ПОКАЗИ \nОДОМЕТРА]])=0,\"\",SUM(Витрати[[#This Row],[ГОТЕЛЬ]:[ТРАНСПОРТ]],Витрати[[#This Row],[ХАРЧУВАННЯ]:[РІЗНЕ]],((Витрати[[#This Row],[КІНЦЕВІ ПОКАЗИ \nОДОМЕТРА]]-Витрати[[#This Row],[ПОЧАТКОВІ ПОКАЗИ \nОДОМЕТРА]])*(ТарифЗаКілометраж))))","v":""}]
[{"$nulls":11},{"$f":"IF(COUNTA(Витрати[[#This Row],[ПОЧАТКОВІ ПОКАЗИ \nОДОМЕТРА]:[КІНЦЕВІ ПОКАЗИ \nОДОМЕТРА]])=2,(Витрати[[#This Row],[КІНЦЕВІ ПОКАЗИ \nОДОМЕТРА]]-Витрати[[#This Row],[ПОЧАТКОВІ ПОКАЗИ \nОДОМЕТРА]])*ТарифЗаКілометраж,\"\")","v":""},{"$f":"IF(COUNTA(Витрати[[#This Row],[ДАТА]:[КІНЦЕВІ ПОКАЗИ \nОДОМЕТРА]])=0,\"\",SUM(Витрати[[#This Row],[ГОТЕЛЬ]:[ТРАНСПОРТ]],Витрати[[#This Row],[ХАРЧУВАННЯ]:[РІЗНЕ]],((Витрати[[#This Row],[КІНЦЕВІ ПОКАЗИ \nОДОМЕТРА]]-Витрати[[#This Row],[ПОЧАТКОВІ ПОКАЗИ \nОДОМЕТРА]])*(ТарифЗаКілометраж))))","v":""}]
[{"$nulls":11},{"$f":"IF(COUNTA(Витрати[[#This Row],[ПОЧАТКОВІ ПОКАЗИ \nОДОМЕТРА]:[КІНЦЕВІ ПОКАЗИ \nОДОМЕТРА]])=2,(Витрати[[#This Row],[КІНЦЕВІ ПОКАЗИ \nОДОМЕТРА]]-Витрати[[#This Row],[ПОЧАТКОВІ ПОКАЗИ \nОДОМЕТРА]])*ТарифЗаКілометраж,\"\")","v":""},{"$f":"IF(COUNTA(Витрати[[#This Row],[ДАТА]:[КІНЦЕВІ ПОКАЗИ \nОДОМЕТРА]])=0,\"\",SUM(Витрати[[#This Row],[ГОТЕЛЬ]:[ТРАНСПОРТ]],Витрати[[#This Row],[ХАРЧУВАННЯ]:[РІЗНЕ]],((Витрати[[#This Row],[КІНЦЕВІ ПОКАЗИ \nОДОМЕТРА]]-Витрати[[#This Row],[ПОЧАТКОВІ ПОКАЗИ \nОДОМЕТРА]])*(ТарифЗаКілометраж))))","v":""}]
[{"$nulls":11},{"$f":"IF(COUNTA(Витрати[[#This Row],[ПОЧАТКОВІ ПОКАЗИ \nОДОМЕТРА]:[КІНЦЕВІ ПОКАЗИ \nОДОМЕТРА]])=2,(Витрати[[#This Row],[КІНЦЕВІ ПОКАЗИ \nОДОМЕТРА]]-Витрати[[#This Row],[ПОЧАТКОВІ ПОКАЗИ \nОДОМЕТРА]])*ТарифЗаКілометраж,\"\")","v":""},{"$f":"IF(COUNTA(Витрати[[#This Row],[ДАТА]:[КІНЦЕВІ ПОКАЗИ \nОДОМЕТРА]])=0,\"\",SUM(Витрати[[#This Row],[ГОТЕЛЬ]:[ТРАНСПОРТ]],Витрати[[#This Row],[ХАРЧУВАННЯ]:[РІЗНЕ]],((Витрати[[#This Row],[КІНЦЕВІ ПОКАЗИ \nОДОМЕТРА]]-Витрати[[#This Row],[ПОЧАТКОВІ ПОКАЗИ \nОДОМЕТРА]])*(ТарифЗаКілометраж))))","v":""}]
[{"$nulls":11},{"$f":"IF(COUNTA(Витрати[[#This Row],[ПОЧАТКОВІ ПОКАЗИ \nОДОМЕТРА]:[КІНЦЕВІ ПОКАЗИ \nОДОМЕТРА]])=2,(Витрати[[#This Row],[КІНЦЕВІ ПОКАЗИ \nОДОМЕТРА]]-Витрати[[#This Row],[ПОЧАТКОВІ ПОКАЗИ \nОДОМЕТРА]])*ТарифЗаКілометраж,\"\")","v":""},{"$f":"IF(COUNTA(Витрати[[#This Row],[ДАТА]:[КІНЦЕВІ ПОКАЗИ \nОДОМЕТРА]])=0,\"\",SUM(Витрати[[#This Row],[ГОТЕЛЬ]:[ТРАНСПОРТ]],Витрати[[#This Row],[ХАРЧУВАННЯ]:[РІЗНЕ]],((Витрати[[#This Row],[КІНЦЕВІ ПОКАЗИ \nОДОМЕТРА]]-Витрати[[#This Row],[ПОЧАТКОВІ ПОКАЗИ \nОДОМЕТРА]])*(ТарифЗаКілометраж))))","v":""}]
[{"$nulls":11},{"$f":"IF(COUNTA(Витрати[[#This Row],[ПОЧАТКОВІ ПОКАЗИ \nОДОМЕТРА]:[КІНЦЕВІ ПОКАЗИ \nОДОМЕТРА]])=2,(Витрати[[#This Row],[КІНЦЕВІ ПОКАЗИ \nОДОМЕТРА]]-Витрати[[#This Row],[ПОЧАТКОВІ ПОКАЗИ \nОДОМЕТРА]])*ТарифЗаКілометраж,\"\")","v":""},{"$f":"IF(COUNTA(Витрати[[#This Row],[ДАТА]:[КІНЦЕВІ ПОКАЗИ \nОДОМЕТРА]])=0,\"\",SUM(Витрати[[#This Row],[ГОТЕЛЬ]:[ТРАНСПОРТ]],Витрати[[#This Row],[ХАРЧУВАННЯ]:[РІЗНЕ]],((Витрати[[#This Row],[КІНЦЕВІ ПОКАЗИ \nОДОМЕТРА]]-Витрати[[#This Row],[ПОЧАТКОВІ ПОКАЗИ \nОДОМЕТРА]])*(ТарифЗаКілометраж))))","v":""}]
[{"$nulls":11},{"$f":"IF(COUNTA(Витрати[[#This Row],[ПОЧАТКОВІ ПОКАЗИ \nОДОМЕТРА]:[КІНЦЕВІ ПОКАЗИ \nОДОМЕТРА]])=2,(Витрати[[#This Row],[КІНЦЕВІ ПОКАЗИ \nОДОМЕТРА]]-Витрати[[#This Row],[ПОЧАТКОВІ ПОКАЗИ \nОДОМЕТРА]])*ТарифЗаКілометраж,\"\")","v":""},{"$f":"IF(COUNTA(Витрати[[#This Row],[ДАТА]:[КІНЦЕВІ ПОКАЗИ \nОДОМЕТРА]])=0,\"\",SUM(Витрати[[#This Row],[ГОТЕЛЬ]:[ТРАНСПОРТ]],Витрати[[#This Row],[ХАРЧУВАННЯ]:[РІЗНЕ]],((Витрати[[#This Row],[КІНЦЕВІ ПОКАЗИ \nОДОМЕТРА]]-Витрати[[#This Row],[ПОЧАТКОВІ ПОКАЗИ \nОДОМЕТРА]])*(ТарифЗаКілометраж))))","v":""}]
[null,"УСЬОГО",null,null,{"$f":"SUBTOTAL(109,Витрати[ГОТЕЛЬ])","v":{"v":3560,"d":"3,560.00 ₴"}},{"$f":"SUBTOTAL(109,Витрати[ТРАНСПОРТ])","v":{"v":1800,"d":"1,800.00 ₴"}},{"$f":"SUBTOTAL(109,Витрати[ХАРЧУВАННЯ])","v":{"v":160,"d":"160.00 ₴"}},{"$f":"SUBTOTAL(109,Витрати[ТЕЛЕФОН])","v":0},{"$f":"SUBTOTAL(109,Витрати[РІЗНЕ])","v":{"v":440,"d":"440.00 ₴"}},{"$nulls":3},{"$f":"SUBTOTAL(109,Витрати[[УСЬОГО ]])","v":{"v":6510.800000000003,"d":"6,510.80 ₴"}}]
[{"$nulls":11},"АВАНСОВІ ПЛАТЕЖІ",{"v":0,"d":"0.00 ₴"}]
[{"$nulls":11},"УСЬОГО",{"$f":"Витрати[[#Totals],[УСЬОГО ]]-Авансові_платежі","v":{"v":6510.800000000003,"d":"6,510.80 ₴"}}]